[Event "Championnat d'Europe Rapide"]
[Date "2024.12.07"]
[White "Pichot, Alan"]
[Black "Podlesnik, Bogdan"]
[WhiteElo "2637"]
[BlackElo "2288"]
[Round "2.17"]
[Result "1-0"]
[TimeControl "900+10"]

1. e4 {[%emt 00:00:04] [%clk 00:15:15]} c5 {[%emt 00:00:03] [%clk 00:15:20]} 2.
Nf3 {[%emt 00:00:02] [%clk 00:15:21]} Nc6 {[%emt 00:00:01] [%clk 00:15:29]} 3.
d4 {[%emt 00:00:23] [%clk 00:15:08]} cxd4 {[%emt 00:00:02] [%clk 00:15:37]} 4.
Nxd4 {[%emt 00:00:02] [%clk 00:15:16]} Nf6 {[%emt 00:00:01] [%clk 00:15:46]} 5.
Nc3 {[%emt 00:00:02] [%clk 00:15:24]} e6 {[%emt 00:00:01] [%clk 00:15:55]} 6.
Nxc6 {[%emt 00:00:24] [%clk 00:15:10]} bxc6 {[%emt 00:00:02] [%clk 00:16:03]} 7.
e5 {[%emt 00:00:01] [%clk 00:15:19]} Nd5 {[%emt 00:00:02] [%clk 00:16:12]} 8.
Ne4 {[%emt 00:00:01] [%clk 00:15:27]} Qa5+ {[%emt 00:00:02] [%clk 00:16:21]} 9.
c3 {[%emt 00:00:23] [%clk 00:15:13]} Qc7 {[%emt 00:01:13] [%clk 00:15:18]} 10.
f4 {[%emt 00:00:11] [%clk 00:15:12]} Qb6 {[%emt 00:00:03] [%clk 00:15:26]} 11.
c4 {[%emt 00:00:13] [%clk 00:15:08]} Bb4+ {[%emt 00:00:35] [%clk 00:15:01]} 12.
Ke2 {[%emt 00:00:02] [%clk 00:15:17]} Ba6 {[%emt 00:01:53] [%clk 00:13:17]} 13.
Kf3 {[%emt 00:00:02] [%clk 00:15:25]} f5 {[%emt 00:00:27] [%clk 00:13:00]} 14.
exf6 {[%emt 00:00:02] [%clk 00:15:33]} Nxf6 {[%emt 00:00:02] [%clk 00:13:08]}
15. c5 {[%emt 00:00:14] [%clk 00:15:29]} Qa5 {[%emt 00:01:35] [%clk 00:11:42]}
16. Nxf6+ {[%emt 00:00:14] [%clk 00:15:26]} gxf6 {[%emt 00:00:03] [%clk
00:11:50]} 17. Bxa6 {[%emt 00:00:02] [%clk 00:15:34]} Qxa6 {[%emt 00:00:44]
[%clk 00:11:15]} 18. Be3 {[%emt 00:00:15] [%clk 00:15:28]} Qc4 {[%emt 00:01:55]
[%clk 00:09:31]} 19. a3 {[%emt 00:02:11] [%clk 00:13:28]} Ba5 {[%emt 00:00:04]
[%clk 00:09:36]} 20. b4 {[%emt 00:00:07] [%clk 00:13:31]} Bc7 {[%emt 00:00:03]
[%clk 00:09:43]} 21. Rc1 {[%emt 00:00:09] [%clk 00:13:33]} Qd5+ {[%emt 00:00:03]
[%clk 00:09:50]} 22. Kf2 {[%emt 00:04:07] [%clk 00:09:36]} Qxd1 {[%emt 00:01:54]
[%clk 00:08:06]} 23. Rhxd1 {[%emt 00:00:02] [%clk 00:09:44]} f5 {[%emt 00:00:19]
[%clk 00:07:57]} 24. Rd3 {[%emt 00:01:31] [%clk 00:08:23]} h5 {[%emt 00:00:59]
[%clk 00:07:07]} 25. Rcd1 {[%emt 00:00:35] [%clk 00:07:58]} Rh7 {[%emt 00:00:04]
[%clk 00:07:13]} 26. a4 {[%emt 00:00:59] [%clk 00:07:09]} a6 {[%emt 00:00:07]
[%clk 00:07:17]} 27. Kf3 {[%emt 00:00:04] [%clk 00:07:15]} O-O-O {[%emt
00:01:36] [%clk 00:05:51]} 28. Ra3 {[%emt 00:02:15] [%clk 00:05:10]} Kb7 {[%emt
00:01:18] [%clk 00:04:43]} 29. b5 {[%emt 00:00:02] [%clk 00:05:17]} axb5 {[%emt
00:00:36] [%clk 00:04:17]} 30. axb5 {[%emt 00:00:01] [%clk 00:05:26]} cxb5
{[%clk 00:04:26]} 31. c6+ {[%emt 00:00:03] [%clk 00:05:33]} Kb8 {[%emt 00:01:31]
[%clk 00:03:05]} 32. Rda1 {[%emt 00:00:24] [%clk 00:05:19]} Kc8 {[%emt 00:00:34]
[%clk 00:02:41]} 33. Ra8+ {[%emt 00:00:02] [%clk 00:05:27]} Bb8 {[%clk
00:02:50]} 34. R1a7 {[%emt 00:00:16] [%clk 00:05:21]} 1-0

[Site "Europe Echecs"]

[Event "Championnat d'Europe Rapide"]
[Date "2024.12.07"]
[White "Aymerich Verdaguer, Eduard"]
[Black "Georgiev, Kiril"]
[WhiteElo "2163"]
[BlackElo "2537"]
[Round "2.18"]
[Result "0-1"]
[TimeControl "900+10"]

1. d4 {[%clk 00:15:18]} Nf6 {[%emt 00:00:03] [%clk 00:15:18]} 2. Nf3 {[%emt
00:00:09] [%clk 00:15:18]} d5 {[%emt 00:01:19] [%clk 00:14:09]} 3. c4 {[%emt
00:00:03] [%clk 00:15:25]} dxc4 {[%emt 00:00:29] [%clk 00:13:50]} 4. Nc3 {[%emt
00:00:25] [%clk 00:15:10]} c6 {[%emt 00:01:04] [%clk 00:12:56]} 5. a4 {[%emt
00:00:16] [%clk 00:15:04]} Bf5 {[%emt 00:00:15] [%clk 00:12:51]} 6. e3 {[%emt
00:01:42] [%clk 00:13:33]} e6 {[%emt 00:00:09] [%clk 00:12:51]} 7. a5 {[%emt
00:00:32] [%clk 00:13:11]} Bb4 {[%emt 00:03:18] [%clk 00:09:44]} 8. Qa4 {[%emt
00:00:02] [%clk 00:13:19]} Qe7 {[%emt 00:00:05] [%clk 00:09:49]} 9. Bxc4 {[%emt
00:00:08] [%clk 00:13:21]} O-O {[%emt 00:00:23] [%clk 00:09:35]} 10. O-O {[%emt
00:01:00] [%clk 00:12:31]} Nbd7 {[%emt 00:01:01] [%clk 00:08:44]} 11. Nh4 {[%emt
00:02:25] [%clk 00:10:17]} Bg4 {[%emt 00:00:48] [%clk 00:08:06]} 12. f3 {[%emt
00:00:08] [%clk 00:10:19]} Bh5 {[%emt 00:00:09] [%clk 00:08:07]} 13. Bd2 {[%emt
00:00:35] [%clk 00:09:54]} b5 {[%emt 00:00:47] [%clk 00:07:29]} 14. axb6 {[%emt
00:00:05] [%clk 00:10:00]} Nxb6 {[%emt 00:00:02] [%clk 00:07:37]} 15. Qa2 {[%emt
00:00:11] [%clk 00:09:59]} c5 {[%emt 00:00:20] [%clk 00:07:27]} 16. Ba6 {[%emt
00:01:25] [%clk 00:08:45]} Rad8 {[%emt 00:00:37] [%clk 00:06:59]} 17. g3 {[%emt
00:02:31] [%clk 00:06:23]} cxd4 {[%emt 00:00:58] [%clk 00:06:12]} 18. exd4
{[%emt 00:00:02] [%clk 00:06:32]} Rxd4 {[%emt 00:00:01] [%clk 00:06:20]} 19. Be3
{[%emt 00:00:03] [%clk 00:06:39]} Rd7 {[%emt 00:00:35] [%clk 00:05:53]} 20. Kh1
{[%emt 00:01:15] [%clk 00:05:35]} Bc5 {[%emt 00:00:28] [%clk 00:05:31]} 21. Bxc5
{[%emt 00:02:19] [%clk 00:03:31]} Qxc5 {[%emt 00:00:02] [%clk 00:05:38]} 22. Qa5
{[%emt 00:00:34] [%clk 00:03:08]} Qe7 {[%emt 00:01:26] [%clk 00:04:21]} 23. Bb5
{[%emt 00:00:20] [%clk 00:02:59]} Rc7 {[%emt 00:00:13] [%clk 00:04:16]} 24. Ng2
{[%emt 00:00:22] [%clk 00:02:48]} Nfd5 {[%emt 00:00:32] [%clk 00:03:55]} 25.
Nxd5 {[%emt 00:00:54] [%clk 00:02:04]} Nxd5 {[%emt 00:00:03] [%clk 00:04:00]}
26. Bd3 {[%emt 00:00:04] [%clk 00:02:12]} Bg6 {[%emt 00:00:31] [%clk 00:03:39]}
27. Bxg6 {[%emt 00:01:06] [%clk 00:01:16]} hxg6 {[%emt 00:00:03] [%clk
00:03:45]} 28. Rf2 {[%emt 00:00:02] [%clk 00:01:24]} Rfc8 {[%emt 00:00:14] [%clk
00:03:41]} 29. h3 {[%emt 00:00:04] [%clk 00:01:31]} Qf6 {[%emt 00:00:19] [%clk
00:03:31]} 30. Rd1 {[%emt 00:00:11] [%clk 00:01:30]} Rc2 {[%emt 00:00:33] [%clk
00:03:07]} 31. Qxa7 {[%emt 00:00:47] [%clk 00:00:56]} Rxb2 {[%emt 00:00:35]
[%clk 00:02:40]} 32. Rxb2 {[%emt 00:00:44] [%clk 00:00:22]} Qxb2 {[%emt
00:00:06] [%clk 00:02:43]} 33. Qd4 {[%emt 00:00:03] [%clk 00:00:30]} Qe2 {[%emt
00:01:27] [%clk 00:01:25]} 34. Qd3 {[%emt 00:00:12] [%clk 00:00:30]} Qf2 {[%emt
00:00:03] [%clk 00:01:30]} 35. f4 {[%emt 00:00:09] [%clk 00:00:32]} Rc3 {[%emt
00:00:24] [%clk 00:01:15]} 36. Rd2 {[%emt 00:00:23] [%clk 00:00:20]} Rc1+ {[%emt
00:00:25] [%clk 00:01:00]} 37. Rd1 {[%emt 00:00:04] [%clk 00:00:27]} Rxd1+
{[%emt 00:00:01] [%clk 00:01:08]} 38. Qxd1 {[%emt 00:00:02] [%clk 00:00:36]}
Qxg2+ {[%emt 00:00:07] [%clk 00:01:10]} 0-1

[Site "Europe Echecs"]

[Event "Championnat d'Europe Rapide"]
[Date "2024.12.07"]
[White "Djukic, Nikola"]
[Black "Dragicevic, Drazen"]
[WhiteElo "2493"]
[BlackElo "2332"]
[Round "2.19"]
[Result "1-0"]
[TimeControl "900+10"]

1. e4 {[%emt 00:00:02] [%clk 00:15:17]} c5 {[%emt 00:00:05] [%clk 00:15:16]} 2.
Nf3 {[%emt 00:00:02] [%clk 00:15:25]} d6 {[%emt 00:00:06] [%clk 00:15:19]} 3. d4
{[%emt 00:00:04] [%clk 00:15:31]} cxd4 {[%emt 00:00:03] [%clk 00:15:27]} 4. Nxd4
{[%emt 00:00:02] [%clk 00:15:39]} Nf6 {[%emt 00:00:02] [%clk 00:15:35]} 5. Nc3
{[%clk 00:15:47]} Bd7 {[%emt 00:00:02] [%clk 00:15:44]} 6. h3 {[%emt 00:01:03]
[%clk 00:14:54]} e5 {[%emt 00:00:34] [%clk 00:15:20]} 7. Nf3 {[%emt 00:03:57]
[%clk 00:11:07]} Be7 {[%emt 00:00:37] [%clk 00:14:53]} 8. Bg5 {[%emt 00:00:23]
[%clk 00:10:54]} Bc6 {[%emt 00:01:04] [%clk 00:13:59]} 9. Bxf6 {[%emt 00:00:05]
[%clk 00:10:59]} Bxf6 {[%emt 00:00:04] [%clk 00:14:05]} 10. Bc4 {[%emt 00:00:02]
[%clk 00:11:07]} O-O {[%emt 00:00:16] [%clk 00:13:59]} 11. O-O {[%emt 00:00:03]
[%clk 00:11:13]} Qd7 {[%emt 00:01:56] [%clk 00:12:14]} 12. Qd3 {[%emt 00:01:21]
[%clk 00:10:01]} Na6 {[%emt 00:04:34] [%clk 00:07:50]} 13. Bxa6 {[%emt 00:00:23]
[%clk 00:09:49]} bxa6 {[%emt 00:00:02] [%clk 00:07:59]} 14. Qxa6 {[%emt
00:00:02] [%clk 00:09:56]} Rab8 {[%emt 00:00:04] [%clk 00:08:05]} 15. Rab1
{[%emt 00:00:14] [%clk 00:09:52]} Rb4 {[%emt 00:01:40] [%clk 00:06:35]} 16. a3
{[%emt 00:00:08] [%clk 00:09:54]} Rxe4 {[%emt 00:00:39] [%clk 00:06:06]} 17.
Nxe4 {[%emt 00:00:04] [%clk 00:10:00]} Bxe4 {[%emt 00:00:01] [%clk 00:06:14]}
18. Qe2 {[%emt 00:00:20] [%clk 00:09:50]} Qf5 {[%emt 00:01:17] [%clk 00:05:07]}
19. Ne1 {[%emt 00:02:21] [%clk 00:07:39]} h5 {[%emt 00:01:15] [%clk 00:04:03]}
20. Rd1 {[%emt 00:00:05] [%clk 00:07:44]} Rd8 {[%emt 00:00:04] [%clk 00:04:09]}
21. c4 {[%emt 00:00:12] [%clk 00:07:42]} Bb7 {[%emt 00:02:46] [%clk 00:01:33]}
22. Nd3 {[%emt 00:01:12] [%clk 00:06:40]} d5 {[%emt 00:01:05] [%clk 00:00:38]}
23. Nc5 {[%emt 00:00:38] [%clk 00:06:12]} Ba8 {[%emt 00:00:01] [%clk 00:00:47]}
24. cxd5 {[%emt 00:00:03] [%clk 00:06:18]} Bxd5 {[%emt 00:00:11] [%clk
00:00:47]} 25. f3 {[%emt 00:00:03] [%clk 00:06:25]} g6 {[%emt 00:00:39] [%clk
00:00:17]} 26. Ne4 {[%emt 00:00:15] [%clk 00:06:20]} Be7 {[%emt 00:00:02] [%clk
00:00:26]} 27. Rd2 {[%emt 00:00:27] [%clk 00:06:04]} Bc6 {[%emt 00:00:18] [%clk
00:00:17]} 28. Qc4 {[%emt 00:00:45] [%clk 00:05:28]} Rxd2 {[%emt 00:00:09] [%clk
00:00:20]} 29. Nxd2 {[%emt 00:00:02] [%clk 00:05:36]} Qd7 {[%emt 00:00:01] [%clk
00:00:28]} 30. Rc1 {[%emt 00:01:12] [%clk 00:04:33]} Qxd2 {[%emt 00:00:20] [%clk
00:00:19]} 31. Qxc6 {[%emt 00:00:01] [%clk 00:04:41]} Qxb2 {[%emt 00:00:06]
[%clk 00:00:25]} 32. Qe8+ {[%emt 00:00:08] [%clk 00:04:42]} Bf8 {[%emt 00:00:01]
[%clk 00:00:33]} 33. Rc8 {[%emt 00:00:41] [%clk 00:04:11]} Qxa3 {[%emt 00:00:03]
[%clk 00:00:40]} 34. Qxe5 {[%emt 00:00:08] [%clk 00:04:13]} Qa6 {[%emt 00:00:24]
[%clk 00:00:26]} 35. Qc5 {[%emt 00:00:18] [%clk 00:04:05]} Qa1+ {[%emt 00:00:15]
[%clk 00:00:22]} 36. Kh2 {[%emt 00:00:01] [%clk 00:04:13]} Qg7 {[%emt 00:00:07]
[%clk 00:00:26]} 37. Qxa7 {[%emt 00:01:18] [%clk 00:03:05]} Qe5+ {[%emt
00:00:04] [%clk 00:00:32]} 38. Kh1 {[%emt 00:00:01] [%clk 00:03:13]} Qe1+ {[%emt
00:00:15] [%clk 00:00:27]} 39. Qg1 {[%emt 00:00:01] [%clk 00:03:21]} Qe6 {[%emt
00:00:13] [%clk 00:00:24]} 40. Qc5 {[%emt 00:00:07] [%clk 00:03:24]} Qe1+ {[%emt
00:00:01] [%clk 00:00:33]} 41. Kh2 {[%clk 00:03:33]} 1-0

[Site "Europe Echecs"]

[Event "Championnat d'Europe Rapide"]
[Date "2024.12.07"]
[White "Avramidou, Anastasia"]
[Black "Kuzubov, Yuriy"]
[WhiteElo "2298"]
[BlackElo "2595"]
[Round "2.20"]
[Result "1-0"]
[TimeControl "900+10"]

1. d4 {[%emt 00:00:03] [%clk 00:15:16]} Nf6 {[%emt 00:00:04] [%clk 00:15:18]} 2.
c4 {[%clk 00:15:24]} e6 {[%emt 00:00:02] [%clk 00:15:27]} 3. Nf3 {[%emt
00:00:01] [%clk 00:15:32]} a6 {[%emt 00:00:06] [%clk 00:15:31]} 4. Nc3 {[%emt
00:00:29] [%clk 00:15:13]} d5 {[%emt 00:00:02] [%clk 00:15:39]} 5. cxd5 {[%emt
00:00:40] [%clk 00:14:43]} exd5 {[%emt 00:00:02] [%clk 00:15:47]} 6. Qc2 {[%emt
00:00:02] [%clk 00:14:51]} Be6 {[%emt 00:01:36] [%clk 00:14:21]} 7. Bg5 {[%emt
00:00:16] [%clk 00:14:44]} Nbd7 {[%emt 00:00:07] [%clk 00:14:25]} 8. e3 {[%emt
00:00:14] [%clk 00:14:40]} c6 {[%emt 00:00:11] [%clk 00:14:25]} 9. Bd3 {[%emt
00:00:07] [%clk 00:14:43]} Bd6 {[%emt 00:00:03] [%clk 00:14:32]} 10. O-O {[%emt
00:01:37] [%clk 00:13:15]} h6 {[%emt 00:00:04] [%clk 00:14:39]} 11. Bh4 {[%emt
00:00:02] [%clk 00:13:23]} O-O {[%emt 00:00:22] [%clk 00:14:27]} 12. Rab1 {[%emt
00:00:18] [%clk 00:13:15]} a5 {[%emt 00:00:47] [%clk 00:13:50]} 13. a3 {[%emt
00:01:45] [%clk 00:11:39]} Qb8 {[%emt 00:00:08] [%clk 00:13:53]} 14. Rfe1 {[%emt
00:01:05] [%clk 00:10:43]} Ng4 {[%emt 00:00:12] [%clk 00:13:51]} 15. Bg3 {[%emt
00:00:40] [%clk 00:10:13]} Bxg3 {[%emt 00:00:05] [%clk 00:13:57]} 16. hxg3
{[%emt 00:00:02] [%clk 00:10:21]} Ndf6 {[%emt 00:00:27] [%clk 00:13:39]} 17. e4
{[%emt 00:01:25] [%clk 00:09:06]} dxe4 {[%emt 00:00:14] [%clk 00:13:36]} 18.
Nxe4 {[%emt 00:00:02] [%clk 00:09:13]} Nxe4 {[%emt 00:00:14] [%clk 00:13:32]}
19. Bxe4 {[%emt 00:00:08] [%clk 00:09:15]} Qd6 {[%emt 00:00:12] [%clk 00:13:30]}
20. Rbd1 {[%emt 00:01:19] [%clk 00:08:06]} Nf6 {[%emt 00:01:11] [%clk 00:12:30]}
21. Bf5 {[%emt 00:01:36] [%clk 00:06:40]} Rfe8 {[%emt 00:01:44] [%clk 00:10:56]}
22. Bxe6 {[%emt 00:00:51] [%clk 00:05:58]} Rxe6 {[%emt 00:00:03] [%clk
00:11:03]} 23. Rxe6 {[%emt 00:00:05] [%clk 00:06:04]} Qxe6 {[%emt 00:00:01]
[%clk 00:11:11]} 24. Re1 {[%emt 00:00:28] [%clk 00:05:47]} Qd6 {[%emt 00:00:09]
[%clk 00:11:12]} 25. Qb3 {[%emt 00:01:24] [%clk 00:04:33]} Qc7 {[%emt 00:00:39]
[%clk 00:10:42]} 26. Re5 {[%emt 00:02:09] [%clk 00:02:34]} Rd8 {[%emt 00:00:46]
[%clk 00:10:07]} 27. Qe3 {[%emt 00:00:07] [%clk 00:02:37]} Kf8 {[%emt 00:00:48]
[%clk 00:09:28]} 28. Qe1 {[%emt 00:00:02] [%clk 00:02:45]} Nd5 {[%emt 00:00:24]
[%clk 00:09:15]} 29. Qb1 {[%emt 00:01:11] [%clk 00:01:44]} g6 {[%emt 00:00:18]
[%clk 00:09:07]} 30. Qc1 {[%emt 00:00:56] [%clk 00:00:57]} Kg7 {[%emt 00:00:04]
[%clk 00:09:13]} 31. Qe1 {[%emt 00:00:01] [%clk 00:01:06]} Qb6 {[%emt 00:01:00]
[%clk 00:08:23]} 32. Qe2 {[%emt 00:00:21] [%clk 00:00:55]} Qb3 {[%emt 00:00:44]
[%clk 00:07:50]} 33. Kh2 {[%emt 00:00:12] [%clk 00:00:52]} a4 {[%emt 00:00:49]
[%clk 00:07:11]} 34. Kg1 {[%emt 00:00:20] [%clk 00:00:43]} Qb5 {[%emt 00:00:59]
[%clk 00:06:22]} 35. Qd2 {[%emt 00:00:19] [%clk 00:00:33]} Qc4 {[%emt 00:00:24]
[%clk 00:06:09]} 36. Kh2 {[%emt 00:00:12] [%clk 00:00:31]} Rd6 {[%emt 00:04:30]
[%clk 00:01:49]} 37. Kg1 {[%emt 00:00:10] [%clk 00:00:31]} b5 {[%emt 00:01:03]
[%clk 00:00:56]} 38. Re1 {[%emt 00:00:10] [%clk 00:00:31]} Nf6 {[%emt 00:00:48]
[%clk 00:00:17]} 39. Re7 {[%emt 00:00:15] [%clk 00:00:26]} Rd7 {[%emt 00:00:13]
[%clk 00:00:15]} 40. Ne5 {[%emt 00:00:15] [%clk 00:00:21]} Rxd4 {[%emt 00:00:06]
[%clk 00:00:19]} 41. Nxc4 {[%emt 00:00:05] [%clk 00:00:26]} 1-0

[Site "Europe Echecs"]

[Event "Championnat d'Europe Rapide"]
[Date "2024.12.07"]
[White "Mihov, Filip"]
[Black "Quparadze, Giga"]
[WhiteElo "2245"]
[BlackElo "2537"]
[Round "2.21"]
[Result "0-1"]
[TimeControl "900+10"]

1. d4 {[%emt 00:05:57] [%clk 00:15:17]} Nf6 {[%emt 00:00:01] [%clk 00:15:19]} 2.
c4 {[%emt 00:00:06] [%clk 00:15:23]} e6 {[%clk 00:15:28]} 3. g3 {[%emt 00:00:03]
[%clk 00:15:29]} Bb4+ {[%emt 00:00:06] [%clk 00:15:32]} 4. Bd2 {[%emt 00:00:02]
[%clk 00:15:37]} a5 {[%emt 00:00:05] [%clk 00:15:38]} 5. Bg2 {[%emt 00:00:16]
[%clk 00:15:30]} d5 {[%emt 00:00:02] [%clk 00:15:46]} 6. Nf3 {[%emt 00:00:39]
[%clk 00:15:01]} O-O {[%emt 00:00:03] [%clk 00:15:53]} 7. Qc2 {[%emt 00:00:08]
[%clk 00:15:03]} Be7 {[%emt 00:00:09] [%clk 00:15:54]} 8. O-O {[%emt 00:00:04]
[%clk 00:15:10]} c6 {[%emt 00:00:01] [%clk 00:16:02]} 9. Rd1 {[%emt 00:00:08]
[%clk 00:15:12]} Nbd7 {[%emt 00:00:06] [%clk 00:16:06]} 10. Bf4 {[%emt 00:00:23]
[%clk 00:14:59]} a4 {[%emt 00:00:02] [%clk 00:16:14]} 11. Nc3 {[%emt 00:02:01]
[%clk 00:13:08]} dxc4 {[%emt 00:00:19] [%clk 00:16:06]} 12. Nxa4 {[%emt
00:00:44] [%clk 00:12:34]} Nd5 {[%emt 00:00:02] [%clk 00:16:13]} 13. Bd2 {[%emt
00:00:29] [%clk 00:12:15]} b5 {[%emt 00:00:02] [%clk 00:16:21]} 14. Nc3 {[%emt
00:00:02] [%clk 00:12:24]} Qb6 {[%emt 00:00:04] [%clk 00:16:27]} 15. a3 {[%emt
00:00:08] [%clk 00:12:26]} Bb7 {[%emt 00:00:03] [%clk 00:16:34]} 16. e4 {[%emt
00:00:04] [%clk 00:12:32]} Nxc3 {[%emt 00:00:18] [%clk 00:16:26]} 17. Bxc3
{[%emt 00:01:03] [%clk 00:11:38]} c5 {[%emt 00:00:02] [%clk 00:16:34]} 18. d5
{[%emt 00:01:29] [%clk 00:10:20]} exd5 {[%emt 00:00:12] [%clk 00:16:32]} 19.
exd5 {[%emt 00:00:03] [%clk 00:10:28]} Bf6 {[%clk 00:16:41]} 20. a4 {[%emt
00:03:34] [%clk 00:07:04]} Qa6 {[%emt 00:00:01] [%clk 00:16:49]} 21. Bxf6 {[%emt
00:00:34] [%clk 00:06:41]} Nxf6 {[%emt 00:00:07] [%clk 00:16:52]} 22. Ne5 {[%emt
00:00:02] [%clk 00:06:49]} bxa4 {[%emt 00:00:46] [%clk 00:16:15]} 23. Nxc4
{[%emt 00:00:16] [%clk 00:06:43]} Rfd8 {[%emt 00:00:04] [%clk 00:16:22]} 24. Ne3
{[%emt 00:00:25] [%clk 00:06:28]} Qb5 {[%emt 00:00:39] [%clk 00:15:52]} 25. Ra3
{[%emt 00:00:47] [%clk 00:05:51]} Qb4 {[%emt 00:04:37] [%clk 00:11:25]} 26. Rda1
{[%emt 00:01:00] [%clk 00:05:01]} h5 {[%emt 00:00:02] [%clk 00:11:33]} 27. h4
{[%emt 00:01:12] [%clk 00:04:00]} g6 {[%emt 00:01:35] [%clk 00:10:08]} 28. Rxa4
{[%emt 00:02:24] [%clk 00:01:45]} Rxa4 {[%emt 00:00:02] [%clk 00:10:17]} 29.
Rxa4 {[%emt 00:01:09] [%clk 00:00:46]} Qe1+ {[%emt 00:00:02] [%clk 00:10:25]}
30. Kh2 {[%clk 00:00:56]} Nxd5 {[%emt 00:00:02] [%clk 00:10:33]} 31. Nxd5 {[%emt
00:00:02] [%clk 00:01:04]} Bxd5 {[%emt 00:00:01] [%clk 00:10:41]} 32. Bxd5
{[%emt 00:00:08] [%clk 00:01:07]} Rxd5 {[%emt 00:00:01] [%clk 00:10:50]} 33. Re4
{[%emt 00:00:02] [%clk 00:01:14]} Rd2 {[%emt 00:00:43] [%clk 00:10:17]} 34. Re8+
{[%emt 00:00:02] [%clk 00:01:22]} Kh7 {[%emt 00:00:06] [%clk 00:10:21]} 35. Rxe1
{[%emt 00:00:02] [%clk 00:01:30]} Rxc2 {[%emt 00:00:01] [%clk 00:10:30]} 36. Kg2
{[%emt 00:00:07] [%clk 00:01:33]} Rxb2 {[%emt 00:00:02] [%clk 00:10:39]} 37. Rc1
{[%emt 00:00:10] [%clk 00:01:33]} Rb5 {[%emt 00:00:02] [%clk 00:10:47]} 38. Kf3
{[%emt 00:00:11] [%clk 00:01:31]} Kg7 {[%clk 00:10:56]} 39. Ke4 {[%emt 00:00:33]
[%clk 00:01:09]} Kf6 {[%clk 00:11:05]} 40. f3 {[%emt 00:00:41] [%clk 00:00:38]}
Ke6 {[%emt 00:00:02] [%clk 00:11:12]} 41. Rc3 {[%emt 00:00:15] [%clk 00:00:33]}
Rb4+ {[%emt 00:00:02] [%clk 00:11:20]} 42. Ke3 {[%emt 00:00:02] [%clk 00:00:42]}
Kd5 {[%emt 00:00:01] [%clk 00:11:29]} 43. Ra3 {[%emt 00:00:06] [%clk 00:00:45]}
Rb7 {[%emt 00:00:10] [%clk 00:11:29]} 44. Kd3 {[%emt 00:00:04] [%clk 00:00:51]}
Rb3+ {[%emt 00:00:26] [%clk 00:11:14]} 45. Rxb3 {[%emt 00:00:02] [%clk
00:00:59]} c4+ {[%emt 00:00:01] [%clk 00:11:23]} 46. Kc3 {[%emt 00:00:03] [%clk
00:01:06]} cxb3 {[%clk 00:11:31]} 0-1

[Site "Europe Echecs"]